{"text_format":"3","workbook":"xlsx","n_sheets":4,"sheets":["Elenco acquisti","Scomposizione budget","Da fare","Condivisione elenco"],"not_rendered":{"charts":2,"images":2,"defined_names":12},"read":"whole","date_system":"1900"}

{"sheet":"Elenco acquisti","index":0,"n_rows":25,"n_cols":8,"rows_kept":25,"merged":[[0,1,0,2],[2,1,2,7],[3,1,3,2],[4,4,6,7]]}
[null,"Ritorno a scuola",null,"Planner"]
[]
[null,"Tenere traccia dell'avanzamento degli acquisti rispetto agli importi delle categorie di budget immessi in Scomposizione budget."]
[null,"Riepilogo budget",null,null,{"$f":"\"Avanzamento degli acquisti (\"&COUNTIFS(Elenco_di_controllo[Acquistato], \">0\")&\" di \"&COUNTIFS(Elenco_di_controllo[Da acquistare], \">0\")&\")\"","v":"Avanzamento degli acquisti (1 di 6)"}]
[null,"Budget",{"v":1500,"d":"€ 1,500.00"},null,{"$f":"IFERROR(COUNTIFS(Elenco_di_controllo[Da acquistare],\">0\",Elenco_di_controllo[Acquistato],\">0\")/SommaArticoliDaAcquistare,0)","v":{"v":0.16666666666666666,"d":"17%"}}]
[null,"Totale elenco acquisti",{"$f":"IFERROR(SUM(TotaleElencoControllo), \"\")","v":{"v":365,"d":"€ 365.00"}}]
[null,"Contante rimanente",{"$f":"IFERROR(C5-C6, \"\")","v":{"v":1135,"d":"€ 1,135.00"}}]
[null,"Elenco acquisti"]
[null,"Articolo","Categoria","Q.tà","Da acquistare","Costo","Acquistato","Costo totale"]
[null,"Matematica","Libri di testo",1,1,{"v":55,"d":"€ 55.00"},1,{"$f":"IFERROR(Elenco_di_controllo[Q.tà]*Elenco_di_controllo[Costo], \"\")","v":{"v":55,"d":"€ 55.00"}}]
[null,"Italiano","Libri di testo",1,1,null,null,{"$f":"IFERROR(Elenco_di_controllo[Q.tà]*Elenco_di_controllo[Costo], \"\")","v":0}]
[null,"Zaino","Materiali",1,null,{"v":30,"d":"€ 30.00"},null,{"$f":"IFERROR(Elenco_di_controllo[Q.tà]*Elenco_di_controllo[Costo], \"\")","v":{"v":30,"d":"€ 30.00"}}]
[null,"Calcolatrice","Materiali",1,{"$nulls":3},{"$f":"IFERROR(Elenco_di_controllo[Q.tà]*Elenco_di_controllo[Costo], \"\")","v":0}]
[null,"Evidenziatori","Materiali",3,{"$nulls":3},{"$f":"IFERROR(Elenco_di_controllo[Q.tà]*Elenco_di_controllo[Costo], \"\")","v":0}]
[null,"Uniforme","Abbigliamento",2,1,{"v":100,"d":"€ 100.00"},null,{"$f":"IFERROR(Elenco_di_controllo[Q.tà]*Elenco_di_controllo[Costo], \"\")","v":{"v":200,"d":"€ 200.00"}}]
[null,"Camicia, con bottoni","Abbigliamento",4,{"$nulls":3},{"$f":"IFERROR(Elenco_di_controllo[Q.tà]*Elenco_di_controllo[Costo], \"\")","v":0}]
[null,"Polo, t-shirt","Abbigliamento",5,{"$nulls":3},{"$f":"IFERROR(Elenco_di_controllo[Q.tà]*Elenco_di_controllo[Costo], \"\")","v":0}]
[null,"Pantaloncini","Abbigliamento",2,{"$nulls":3},{"$f":"IFERROR(Elenco_di_controllo[Q.tà]*Elenco_di_controllo[Costo], \"\")","v":0}]
[null,"Scarpe da ginnastica","Abbigliamento",2,1,null,null,{"$f":"IFERROR(Elenco_di_controllo[Q.tà]*Elenco_di_controllo[Costo], \"\")","v":0}]
[null,"Calzini","Abbigliamento",10,{"$nulls":3},{"$f":"IFERROR(Elenco_di_controllo[Q.tà]*Elenco_di_controllo[Costo], \"\")","v":0}]
[null,"Giacca primaverile","Abbigliamento",1,1,{"v":80,"d":"€ 80.00"},null,{"$f":"IFERROR(Elenco_di_controllo[Q.tà]*Elenco_di_controllo[Costo], \"\")","v":{"v":80,"d":"€ 80.00"}}]
[null,"Maglioni","Abbigliamento",1,{"$nulls":3},{"$f":"IFERROR(Elenco_di_controllo[Q.tà]*Elenco_di_controllo[Costo], \"\")","v":0}]
[null,"Felpe","Abbigliamento",1,{"$nulls":3},{"$f":"IFERROR(Elenco_di_controllo[Q.tà]*Elenco_di_controllo[Costo], \"\")","v":0}]
[null,"Biancheria","Abbigliamento",10,{"$nulls":3},{"$f":"IFERROR(Elenco_di_controllo[Q.tà]*Elenco_di_controllo[Costo], \"\")","v":0}]
[null,"Giacca invernale","Abbigliamento",1,1,null,null,{"$f":"IFERROR(Elenco_di_controllo[Q.tà]*Elenco_di_controllo[Costo], \"\")","v":0}]

{"sheet":"Scomposizione budget","index":1,"n_rows":6,"n_cols":3,"rows_kept":6}
[null,"Scomposizione budget"]
[null,"Aggiungere le categorie e gli importi di budget di cui tenere traccia in relazione all'elenco degli acquisti."]
[null,"Categoria","Costo totale"]
[null,"Abbigliamento",{"$f":"IFERROR(SUMIFS(Elenco_di_controllo[Costo totale],Elenco_di_controllo[Categoria],Categoria[Categoria]), \"\")","v":{"v":280,"d":"€ 280.00"}}]
[null,"Materiali",{"$f":"IFERROR(SUMIFS(Elenco_di_controllo[Costo totale],Elenco_di_controllo[Categoria],Categoria[Categoria]), \"\")","v":{"v":30,"d":"€ 30.00"}}]
[null,"Libri di testo",{"$f":"IFERROR(SUMIFS(Elenco_di_controllo[Costo totale],Elenco_di_controllo[Categoria],Categoria[Categoria]), \"\")","v":{"v":55,"d":"€ 55.00"}}]

{"sheet":"Da fare","index":2,"n_rows":22,"n_cols":3,"rows_kept":22}
[null,"Da fare"]
[null,"Tenere traccia di tutte le attività che è necessario completare prima dell'inizio della scuola."]
[null,"Fatto","Attività"]
[null,"x","Compilare tutti i moduli di registrazione"]
[null,null,"Pianificare la visita medica e oculistica, se necessario"]
[null,null,"Controllare tutte le vaccinazioni obbligatorie"]
[null,null,"Ottenere indicazioni dal medico per la somministrazione di tutti i farmaci necessari"]
[null,null,"Verificare i requisiti di abbigliamento dalla scuola"]
[null,null,"Ottenere un elenco del materiale necessario per la scuola"]
[null,null,"Incontrare l'insegnante"]
[null,null,"Determinare il metodo di comunicazione preferito dell'insegnante (telefono, posta elettronica, nota scritta)"]
[null,null,"Visitare la scuola insieme al bambino"]
[null,null,"Aiutare il bambino a memorizzare il numero di casa, il numero dell'ufficio e l'indirizzo di casa"]
[null,null,"Organizzare il trasporto, identificare un punto di incontro sicuro e provare il percorso"]
[null,null,"Se va a piedi, provare alcune volte il percorso insieme al bambino"]
[null,null,"Se si condivide un'auto, presentare il bambino a tutte le persone che guideranno"]
[null,null,"Se prenderà l'autobus, verificare orari e fermate"]
[null,null,"Organizzare l'assistenza pre-scuola o dopo scuola"]
[null,null,"Pianificare un menu per colazioni, merende a scuola, pranzi al sacco, merende dopo scuola"]
[null,null,"Determinare gli orari e l'organizzazione dei compiti"]
[null,null,"Definire un orario per la messa a letto almeno due settimane prima dell'inizio della scuola"]
[null,null,"Preparare un calendario di tutti gli eventi e impegni scolastici"]

{"sheet":"Condivisione elenco","index":3,"n_rows":4,"n_cols":5,"rows_kept":4}
[null,"Condivisione elenco",null,null,"Condividere questo elenco con altre persone in modo che possano contribuire. Selezionare Condividi in alto a destra oppure premere ALT e quindi YU. Salvare il file in OneDrive e inviare il collegamento agli amici."]
[null,"Nome","Posta elettronica","Condiviso?"]
[null,"Persona 1","prova@email.com","Sì"]
[null,"Persona 2","prova@email.com","No"]